bitfinex/quotes_ETHUSD_20210701
["timestamp","ask_amount","ask_price","bid_price","bid_amount"]
[1625149465306,0.03453866,2099.0,2098.1,2.64775103]
[1625149465412,16.6697,2099.3,2098.1,5.23228452]
[1625149465413,9.52503,2099.3,2098.1,5.23228452]
[1625149465508,9.52524,2099.5,2098.2,0.08]
[1625149465829,9.52524,2099.5,2098.3,5.29228452]
[1625149466182,9.52524,2099.5,2098.3,5.23228452]
[1625149466696,7.14255,2099.3,2098.3,5.23228452]
[1625149466794,11.18705,2099.3,2098.3,5.23228452]
[1625149469927,11.18705,2099.3,2097.9,21.3236793]
[1625149470369,11.18705,2099.3,2097.9,23.97143033]
[1625149470672,11.18705,2099.3,2098.0,2.58453349]
[1625149470822,11.18705,2099.3,2098.1,0.18]
[1625149471020,11.18705,2099.3,2098.1,2.82775103]
[1625149471123,3.5720082,2099.2,2098.2,2.58453349]
[1625149471475,3.5720082,2099.2,2098.3,2.64775103]
[1625149472123,7.14316,2099.1,2098.3,2.64775103]
[1625149472224,7.13316,2099.1,2098.3,2.64775103]
[1625149472770,4.0445,2099.3,2098.3,5.23228452]
[1625149472870,1.5121,2099.4,2098.3,5.23228452]
[1625149472969,9.52524,2099.5,2098.3,5.23228452]
[1625149473070,9.52524,2099.5,2098.4,0.04]
[1625149473221,7.14126,2099.6,2098.5,0.17552917]
[1625149473323,7.14126,2099.6,2098.5,0.35552917]
[1625149473418,7.14126,2099.6,2098.5,5.58781369]
[1625149473580,7.14126,2099.6,2098.5,5.41228452]
[1625149473974,9.52196,2100.1,2098.6,0.08]
[1625149474072,10.3737,2100.3,2098.7,0.14408821]
[1625149474173,10.2171,2100.7,2098.7,0.14408821]
[1625149474269,10.2171,2100.7,2099.1,9.51794]
[1625149474371,11.90073,2100.8,2099.3,0.06212587]
[1625149474582,3.569465,2100.6,2099.3,0.06212587]
[1625149474676,11.90073,2100.8,2099.3,0.06212587]
[1625149474836,32.1134,2101.2,2099.4,2.64775103]
[1625149474986,21.1469,2101.2,2099.5,0.22387171]
[1625149475087,10.8712,2101.2,2099.5,0.22387171]
[1625149475183,3.5686838,2101.1,2099.6,0.15]
[1625149475289,3.5686838,2101.1,2099.7,0.11250834]
[1625149475583,3.5686838,2101.1,2099.8,2.58453349]
[1625149475687,3.5686838,2101.1,2099.9,0.03251864]
[1625149476137,3.5686838,2101.1,2100.0,2.64775103]
[1625149476138,7.13687,2100.8,2100.0,2.64775103]
[1625149477080,7.13687,2100.8,2100.0,20.86884953]
[1625149482335,0.20457098,2100.7,2100.0,18.51591653]
[1625149482480,7.13742,2100.7,2100.0,18.51591653]
[1625149482887,10.8712,2101.2,2100.0,21.10045002]
[1625149483030,20.5427,2101.7,2100.0,24.53955002]
[1625149483129,10.4401,2101.7,2100.0,24.53955002]
[1625149483330,15.0,2101.7,2100.1,0.02929175]
[1625149483477,15.0,2101.7,2100.0,24.53955002]
[1625149483579,15.0,2101.7,2100.1,2.64775103]
[1625149483879,3.5688,2101.1,2100.1,2.64775103]
[1625149484079,7.1374838,2101.1,2100.1,2.64775103]
[1625149484182,9.51626,2100.9,2100.1,2.64775103]
[1625149485129,9.51626,2100.9,2100.0,15.8681655]
[1625149485228,7.13886,2100.5,2100.0,15.8681655]
[1625149485427,7.13886,2100.5,2099.6,44.7471684]
[1625149485730,3.56984,2100.4,2099.6,44.7471684]
[1625149485828,4.58434,2100.4,2099.6,44.7471684]
[1625149486281,7.13967,2100.0,2099.6,44.7471684]
[1625149486380,10.49287,2100.0,2099.6,44.7471684]
[1625149486483,10.49287,2100.0,2099.2,2.58453349]
[1625149486829,3.3532,2100.0,2099.2,2.58453349]
[1625149487285,10.4942009,2100.0,2099.2,2.58453349]
[1625149487382,17.6338709,2100.0,2099.2,2.58453349]
[1625149487478,10.4942009,2100.0,2099.2,2.58453349]
[1625149487581,10.4942009,2100.0,2099.2,2.53453349]
[1625149489198,7.14136,2099.6,2099.2,2.53453349]
[1625149490602,7.1410009,2100.0,2099.2,2.53453349]
[1625149490702,9.51956,2100.3,2099.2,2.53453349]
[1625149490853,9.51956,2100.3,2099.3,0.08]
[1625149491101,9.51956,2100.3,2099.2,4.95606815]
[1625149491551,7.14023,2099.9,2099.2,4.95606815]
[1625149491646,9.51956,2100.3,2099.2,4.95606815]
[1625149491997,9.51956,2100.3,2099.2,4.90606815]
[1625149492349,15.47262,2100.5,2099.2,4.90606815]
[1625149492550,11.9028,2100.5,2099.3,0.12911253]
[1625149492700,26.06456,2101.2,2099.3,0.12911253]
[1625149492701,7.13787,2100.6,2099.3,0.12911253]
[1625149492847,11.0002,2101.2,2099.3,0.12911253]
[1625149492946,11.0002,2101.2,2099.4,2.53171949]
[1625149492947,10.6932,2101.0,2099.4,2.53171949]
[1625149493046,10.6932,2101.0,2099.5,0.0774676]
[1625149493144,11.0002,2101.2,2099.5,0.0774676]
[1625149493397,11.0002,2101.2,2099.6,5.08741248]
[1625149493578,11.0002,2101.2,2099.7,0.08]
[1625149493783,7.13739,2100.6,2099.8,7.13717]
[1625149493929,7.13739,2100.6,2099.8,5.08741248]
[1625149494537,7.13739,2100.6,2099.8,2.53171949]
[1625149494686,7.13739,2100.6,2099.1,9.51841]
[1625149494687,10.7067498,2100.6,2099.1,9.51841]
[1625149494837,10.7067498,2100.6,2099.2,0.00847213]
[1625149495084,3.57005,2100.5,2099.2,0.00847213]
[1625149495189,7.26055,2100.5,2099.2,0.00847213]
[1625149495633,7.26055,2100.5,2099.2,5.09588461]
[1625149495735,7.26055,2100.5,2099.3,0.1]
[1625149495884,3.56986,2100.3,2099.3,0.1]
[1625149496140,7.14016,2099.8,2099.3,5.18741248]
[1625149497469,7.14016,2099.8,2099.3,5.08741248]
[1625149498192,7.14016,2099.8,2099.1,78.1436898]
[1625149501478,7.14016,2099.8,2098.5,5.07353895]
[1625149501577,7.16470718,2099.8,2099.1,22.7655945]
[1625149501680,0.2274837,2099.7,2099.1,22.7655945]
[1625149501882,3.57033,2099.9,2099.1,22.7655945]
[1625149502180,3.57033,2099.9,2099.2,0.04]
[1625149502381,3.57033,2099.9,2099.1,25.28344046]
[1625149502672,9.52179,2099.7,2099.1,25.28344046]
[1625149502821,3.57033,2099.9,2099.1,25.28344046]
[1625149503021,3.5705482,2100.0,2099.1,27.83358304]
[1625149503224,9.52013,2100.1,2099.1,27.83358304]
[1625149503875,7.13977,2099.9,2099.1,34.97328304]
[1625149504176,7.13977,2099.9,2099.2,0.04]
[1625149504424,7.13977,2099.9,2099.1,27.83358304]
[1625149504523,7.13977,2099.9,2099.2,5.06798854]
[1625149505133,7.13925,2100.2,2099.2,12.20768854]
[1625149505233,13.0906,2100.3,2099.2,12.20768854]
[1625149505333,13.0906,2100.3,2099.2,12.21543988]
[1625149505433,9.52062,2100.3,2099.2,12.21543988]
[1625149505889,3.5692786,2100.7,2099.2,12.21543988]
[1625149506035,3.5692786,2100.7,2099.2,12.22276398]
[1625149506139,3.56936,2100.6,2099.2,23.83207998]
[1625149506235,7.13801,2100.4,2099.7,7.13794]
[1625149506837,7.13801,2100.4,2099.7,9.79701929]
[1625149507073,7.13801,2100.4,2099.7,12.48686187]
[1625149507131,3.56936,2100.6,2099.7,12.48686187]
[1625149507384,7.13765,2100.6,2099.7,12.48686187]
[1625149507490,9.51725,2100.7,2099.7,12.48686187]
[1625149507491,3.56869,2101.0,2099.7,12.48686187]
[1625149507678,3.56869,2101.0,2099.8,0.06]
[1625149508028,3.56869,2101.0,2099.9,5.34892187]
[1625149508283,11.0002,2101.2,2099.9,5.34892187]
[1625149508581,7.13631,2101.0,2100.3,7.13596]
[1625149508728,4.75857,2101.3,2100.3,7.13596]
[1625149508977,4.75857,2101.3,2100.3,7.15755058]
[1625149509178,4.75857,2101.3,2100.3,9.92811429]
[1625149509429,4.75857,2101.3,2100.3,12.74905687]
[1625149510130,7.13579,2101.1,2100.3,12.74905687]
[1625149510428,7.13579,2101.1,2100.3,17.18484097]
[1625149510580,7.13579,2101.1,2100.4,0.06]
[1625149510781,4.75857,2101.3,2100.4,0.06]
[1625149510938,4.75857,2101.3,2100.4,2.85215429]
[1625149511031,0.03450566,2101.2,2100.5,2.82094258]
[1625149511722,0.03450566,2101.2,2100.5,2.72094258]
[1625149512124,7.17004566,2101.2,2100.5,2.72094258]
[1625149512628,7.17004566,2101.2,2100.5,5.51309687]
[1625149513977,0.03450566,2101.2,2100.5,5.51309687]
[1625149514126,0.03450566,2101.2,2100.6,0.12]
[1625149514325,0.03450566,2101.2,2100.6,4.7295]
[1625149514527,11.89206,2102.4,2100.7,5.58810194]
[1625149514528,16.07667774,2102.2,2100.7,5.58810194]
[1625149514631,11.89272,2102.2,2100.7,5.74692351]
[1625149514784,10.19,2102.9,2100.7,6.10456089]
[1625149514876,10.19,2102.9,2100.8,0.2]
[1625149514977,10.19,2102.9,2100.9,0.10109794]
[1625149515132,10.19,2102.9,2101.3,7.13193]
[1625149515133,7.13191,2102.5,2101.3,7.13193]
[1625149515226,7.13191,2102.5,2101.3,12.00933]
[1625149515475,7.13191,2102.5,2101.4,5.58810194]
[1625149515627,14.08191,2102.5,2101.4,5.58810194]
[1625149516228,14.08191,2102.5,2101.4,12.71979194]
[1625149517033,14.08191,2102.5,2101.4,5.58810194]
[1625149519885,6.95,2102.5,2101.4,5.58810194]
[1625149519982,6.95,2102.5,2101.5,0.0578551]
[1625149520083,14.08191,2102.5,2101.5,0.1178551]
[1625149520187,14.08191,2102.5,2101.5,0.06]
[1625149520286,14.08191,2102.5,2101.6,2.78660052]
[1625149520386,7.13191,2102.5,2101.6,5.58810194]
[1625149521129,7.13191,2102.5,2101.6,12.71898194]
[1625149521379,9.50938,2102.6,2101.6,12.71898194]
[1625149521480,11.8893,2102.9,2101.6,12.71898194]
[1625149521585,11.8893,2102.9,2101.7,0.04586534]
[1625149521734,21.4051,2103.2,2101.7,0.09195718]
[1625149521834,10.3582,2103.2,2101.7,0.09195718]
[1625149521986,17.4886326,2103.2,2101.8,10.49660194]
[1625149522085,10.3582,2103.2,2101.9,0.185789]
[1625149522381,10.9924,2103.6,2102.0,5.64810194]
[1625149522532,20.7305,2103.9,2102.1,0.0814268]
[1625149522634,7.1296,2103.1,2102.0,5.64810194]
[1625149522732,7.1296,2103.1,2102.1,2.78660052]
[1625149522836,7.1296,2103.1,2102.2,2.80150142]
[1625149523039,7.1296,2103.1,2101.8,4.9085]
[1625149523186,7.1296,2103.1,2101.7,0.00609184]
[1625149523287,10.9449,2103.1,2101.7,0.00609184]
[1625149523642,14.5105348,2103.1,2101.8,7.12979]
[1625149523739,10.9449,2103.1,2101.8,10.32134041]
[1625149523838,10.9449,2103.1,2101.9,0.2]
[1625149524189,10.9449,2103.1,2102.0,5.50244041]
[1625149524290,1.1453,2103.2,2102.0,5.50244041]
[1625149524438,9.50753,2103.4,2102.0,5.50244041]
[1625149524738,7.12985,2103.0,2102.0,5.50244041]
[1625149527160,7.12985,2103.0,2101.8,0.1362438]
[1625149527354,0.10873856,2102.9,2101.8,0.1362438]
[1625149527535,0.00736909,2102.9,2101.8,0.1362438]
[1625149527786,0.00736909,2102.9,2101.3,2.54858281]
[1625149527890,3.56658,2102.9,2101.3,9.27579121]
[1625149528036,3.56667,2102.4,2101.3,9.27579121]
[1625149528139,5.00387,2102.4,2101.3,9.27579121]
[1625149528286,6.05847,2102.4,2101.3,9.27579121]
[1625149528487,7.13349,2101.9,2101.3,9.27579121]
[1625149528587,9.5111,2102.2,2101.3,9.27579121]
[1625149528987,9.5111,2102.2,2101.4,0.1]
[1625149529238,9.5111,2102.2,2101.3,9.27579121]
[1625149530229,7.13287,2102.1,2101.3,9.27579121]
[1625149531982,7.13287,2102.1,2101.3,11.98548214]
[1625149532182,3.5667068,2102.4,2101.3,5.25827374]
[1625149532282,3.5667068,2102.4,2101.3,88.63731124]
[1625149532378,3.5667068,2102.4,2101.4,0.10707046]
[1625149533035,7.13306,2102.1,2101.3,88.63731124]
[1625149533183,7.13306,2102.1,2101.5,0.12]
[1625149534209,7.13221,2102.3,2101.5,0.12]
[1625149534462,13.07593,2102.9,2101.6,0.1]
[1625149534558,13.07593,2102.9,2101.7,0.01323994]
[1625149534658,13.07593,2102.9,2101.5,4.6947]
[1625149534758,13.07593,2102.9,2101.6,0.08681676]
[1625149535058,16.6418595,2102.9,2101.6,0.08681676]
[1625149535158,16.6418595,2102.9,2101.4,0.04115178]
[1625149535460,16.6418595,2102.9,2101.4,5.37942552]
[1625149535565,17.9719595,2102.9,2101.4,5.37942552]
[1625149535710,17.9719595,2102.9,2101.4,5.25827374]
[1625149535964,3.566322,2102.5,2101.4,5.25827374]
[1625149536334,3.566322,2102.5,2101.4,8.09446534]
[1625149537189,7.13172,2102.4,2102.0,250.0]
[1625149537433,7.13172,2102.4,2102.1,0.06]
[1625149537634,7.13172,2102.4,2102.0,250.0]
[1625149539434,10.69831,2102.4,2102.0,250.0]
[1625149539539,3.56659,2102.4,2102.0,250.0]
[1625149541194,7.13364,2102.2,2102.0,250.0]
[1625149544789,7.13364,2102.2,2102.0,254.035537]
[1625149544988,7.13364,2102.2,2102.0,250.0]
[1625149547841,7.13364,2102.2,2102.0,234.1493]
[1625149549857,4.7558724,2102.6,2102.0,234.1493]
[1625149549956,18.83927,2102.9,2102.0,238.4106]
[1625149550155,18.83927,2102.9,2102.1,0.08]
[1625149550352,18.83927,2102.9,2102.1,0.01626888]
[1625149550455,18.83927,2102.9,2102.0,234.1493]
[1625149550552,7.1312,2102.5,2102.0,234.1493]
[1625149550963,6.95,2102.9,2102.0,238.3699]
[1625149551060,6.95,2102.9,2102.0,243.70317583]
[1625149551156,6.95,2102.9,2102.1,0.1]
[1625149551457,6.95,2102.9,2102.1,2.8041359]
[1625149551556,6.95,2102.9,2102.1,9.9336159]
[1625149551803,9.5065,2103.1,2102.1,9.9336159]
[1625149552132,0.93690712,2103.1,2102.1,13.80127813]
[1625149552312,7.1297965,2103.3,2102.2,0.00645373]
[1625149552560,7.1297965,2103.3,2102.2,0.08]
[1625149553267,7.12945,2103.1,2102.2,12.42013583]
[1625149553615,7.12945,2103.1,2102.3,0.04]
[1625149555180,7.12945,2103.1,2102.3,7.16917]
[1625149555782,7.12945,2103.1,2102.3,7.12917]
[1625149556839,43.99153,2103.7,2102.3,12.8852856]
[1625149556840,32.1068,2103.7,2102.3,12.8852856]
[1625149556939,21.2667,2103.7,2102.3,12.8852856]
[1625149557095,10.4894,2103.7,2102.4,0.01690165]
[1625149557491,25.37058528,2103.7,2102.4,0.01690165]
[1625149557646,7.1311745,2103.0,2102.0,239.0993]
[1625149557743,10.6729645,2103.0,2102.0,239.0993]
[1625149557841,11.9066645,2103.0,2102.0,239.0993]
[1625149558140,11.9066645,2103.0,2102.1,0.06]
[1625149558244,10.6976972,2102.5,2102.1,0.06]
[1625149558347,8.0780672,2102.5,2102.1,0.06]
[1625149558494,8.0280672,2102.5,2102.0,234.1493]
[1625149559883,7.13254,2102.3,2102.0,234.1493]
[1625149561298,10.66185,2102.4,2102.0,234.1493]
[1625149561299,1.1518,2102.4,2102.0,234.1493]
[1625149561743,1.1518,2102.4,2102.0,231.32843525]
[1625149562046,3.5666053,2102.3,2102.0,231.32843525]
[1625149562145,7.13382,2102.2,2102.0,231.32843525]
[1625149562796,7.13382,2102.2,2102.0,215.48663525]
[1625149563485,7.13382,2102.2,2102.0,183.81163525]
[1625149563637,0.14,2102.1,2102.0,136.29913525]
[1625149563739,0.14,2102.1,2102.0,111.64513525]
[1625149563839,0.29,2102.1,2102.0,111.64513525]
[1625149564039,0.29,2102.1,2102.0,107.41271651]
[1625149564235,0.15,2102.1,2102.0,107.41271651]
[1625149564440,12.04383,2102.1,2102.0,107.41271651]
[1625149564838,11.04383,2102.1,2102.0,107.41271651]
[1625149567516,11.19383,2102.1,2102.0,107.41271651]
[1625149567715,11.25383,2102.1,2102.0,107.41271651]
[1625149568382,11.19383,2102.1,2102.0,107.41271651]
[1625149575792,12.13156338,2102.1,2102.0,103.18016693]
[1625149576451,27.13156338,2102.1,2102.0,103.18016693]
[1625149576693,27.27156338,2102.1,2102.0,103.18016693]
[1625149576881,27.27156338,2102.1,2102.0,100.35819051]
[1625149577380,27.13156338,2102.1,2102.0,93.22089051]
[1625149577580,27.16604509,2102.1,2102.0,93.22089051]
[1625149577683,28.19454509,2102.1,2102.0,93.22089051]
[1625149578232,28.23454509,2102.1,2102.0,93.22089051]
[1625149578635,28.19454509,2102.1,2102.0,93.22089051]
[1625149578734,28.19454509,2102.1,2102.0,86.08359051]
[1625149579590,31.76333539,2102.1,2102.0,74.18719051]
[1625149579740,36.90333539,2102.1,2102.0,74.18719051]
[1625149580087,36.90333539,2102.1,2102.0,62.29078511]
[1625149580240,38.64064579,2102.1,2102.0,62.29078511]
[1625149580340,35.07185549,2102.1,2102.0,62.29078511]
[1625149580441,35.07185549,2102.1,2102.0,55.15348511]
[1625149581193,35.07185549,2102.1,2102.0,48.09824505]
[1625149581554,35.07185549,2102.1,2102.0,40.96024505]
[1625149582858,37.30936757,2102.1,2102.0,40.96024505]
[1625149582963,37.30936757,2102.1,2102.0,33.59994959]
[1625149583059,40.78277827,2102.1,2102.0,12.66291114]
[1625149583162,40.78277827,2102.1,2101.4,39.42369866]
[1625149583263,0.01323447,2102.0,2101.4,39.0950021]
[1625149583357,0.31161813,2101.9,2101.4,39.0950021]
[1625149583459,25.31161813,2101.9,2101.4,39.0950021]
[1625149583587,30.46161813,2101.9,2101.4,39.0950021]
[1625149583690,4.7601439,2101.8,2101.4,39.0950021]
[1625149583787,20.08278429,2101.7,2101.4,39.0950021]
[1625149583888,30.23278429,2101.7,2101.4,39.0950021]
[1625149583989,30.15,2101.7,2101.4,39.0950021]
[1625149584095,30.15,2101.7,2101.4,38.2710021]
[1625149584240,31.8873104,2101.7,2101.4,38.2710021]
[1625149584339,11.90026,2101.6,2101.4,38.2710021]
[1625149584491,23.5301,2101.5,2101.4,38.2710021]
[1625149584741,3.5301,2101.5,2101.4,38.2710021]
[1625149585044,5.2674104,2101.5,2101.4,38.2710021]
[1625149585339,3.5301,2101.5,2101.4,38.2710021]
[1625149585441,0.15,2101.5,2101.4,38.2710021]
[1625149585852,11.90026,2101.6,2101.4,38.2710021]
[1625149585999,7.14032,2101.8,2101.4,42.4225021]
[1625149587235,7.14032,2101.8,2101.4,38.2710021]
[1625149588804,9.55015171,2102.1,2101.4,38.2710021]
[1625149588905,7.13478,2102.0,2101.4,38.2710021]
[1625149592350,7.13478,2102.0,2101.4,38.1710021]
[1625149592740,7.20936207,2102.0,2101.4,38.1710021]
[1625149592839,7.13478,2102.0,2101.4,38.1710021]
[1625149593846,0.03448171,2102.1,2101.4,38.1710021]
[1625149593948,9.55015171,2102.1,2101.4,38.1710021]
[1625149595147,7.13548,2101.8,2101.4,38.1710021]
[1625149595604,9.55015171,2102.1,2101.4,38.1710021]
[1625149595798,9.55015171,2102.1,2101.5,0.08]
[1625149595899,9.55015171,2102.1,2101.4,38.1710021]
[1625149596202,0.03448171,2102.1,2101.4,38.1710021]
[1625149597356,0.03448171,2102.1,2101.4,45.3042221]
[1625149597556,0.03448171,2102.1,2101.5,0.04]
[1625149598956,0.03448171,2102.1,2101.5,3.0843]
[1625149599997,0.03448171,2102.1,2101.5,3.0443]
[1625149600197,0.03448171,2102.1,2101.5,10.17725]
[1625149600905,0.03448171,2102.1,2101.5,12.66159577]
[1625149601101,0.03448171,2102.1,2101.5,15.14755733]
[1625149601204,55.0,2102.8,2101.5,15.14755733]
[1625149601303,55.0,2102.8,2102.1,7.13056]
[1625149601451,55.0,2102.8,2102.1,12.06326]
[1625149601630,55.0,2102.8,2102.2,0.2]
[1625149602019,55.0,2102.8,2102.2,2.96726528]
[1625149602766,55.0,2102.8,2102.2,2.76726528]
[1625149603166,55.0,2102.8,2102.4,7.12957]
[1625149603854,55.0,2102.8,2102.4,9.89683528]
[1625149606297,55.0,2102.8,2102.4,18.70626528]
[1625149606398,55.0,2102.8,2102.4,15.939]
[1625149606597,55.0,2102.8,2101.8,33.6241121]
[1625149606751,59.7095,2102.8,2101.9,0.06]
[1625149607050,59.7095,2102.8,2101.8,33.6241121]
[1625149607899,59.7095,2102.8,2101.9,2.48596156]
[1625149608004,59.7095,2102.8,2101.9,9.61718156]
[1625149608362,59.7095,2102.8,2102.0,2.58868095]
[1625149608449,55.0,2102.8,2102.0,2.58868095]
[1625149608549,55.0,2102.8,2102.1,0.04]
[1625149608945,55.0,2102.8,2102.1,2.62868095]
[1625149609398,55.0,2102.8,2102.3,7.13004]
[1625149609650,55.0,2102.8,2102.4,0.2]
[1625149609850,55.0,2102.8,2102.4,2.78868095]
[1625149610348,55.0,2102.8,2102.4,2.58868095]
[1625149610699,55.0,2102.8,2102.4,9.71837095]
[1625149611361,55.0,2102.8,2102.1,18.15051796]
[1625149611508,55.0,2102.8,2102.0,5.0]
[1625149611509,59.6831,2102.8,2102.0,5.0]
[1625149611610,74.6831,2102.8,2102.0,5.0]
[1625149611707,0.12716839,2102.7,2102.0,5.0]
[1625149611803,7.13415,2102.4,2102.0,5.0]
[1625149612054,0.15,2102.3,2102.0,5.0]
[1625149612163,5.1541,2102.3,2102.0,5.0]
[1625149612603,0.09313065,2102.2,2101.4,38.1710021]
[1625149613705,7.13528,2101.9,2101.4,38.1710021]
[1625149614001,7.13528,2101.9,2101.5,0.08]
[1625149614206,7.13528,2101.9,2101.4,38.1710021]
[1625149615216,7.21101332,2101.9,2101.4,38.1710021]
[1625149615320,3.56844,2101.8,2101.4,38.1710021]
[1625149615467,10.28854,2101.8,2101.4,38.1710021]
[1625149615567,0.04,2101.7,2101.4,38.1710021]
[1625149615664,0.19,2101.7,2101.4,38.1710021]
[1625149615973,7.13735,2101.6,2101.4,38.1710021]
[1625149616120,15.0,2101.5,2101.4,38.1710021]
[1625149616222,15.15,2101.5,2101.4,35.34876294]
[1625149616313,15.21,2101.5,2101.4,35.34876294]
[1625149616771,0.21,2101.5,2101.4,35.34876294]
[1625149617046,0.15,2101.5,2101.4,35.34876294]
[1625149618834,7.13735,2101.6,2101.4,35.34876294]
[1625149618987,7.13735,2101.6,2101.4,39.92026294]
[1625149619283,1.7373104,2102.2,2101.4,39.92026294]
[1625149620161,3.56707,2102.6,2101.4,39.92026294]
[1625149621110,3.5672917,2102.3,2101.4,39.92026294]
[1625149621211,7.13402,2102.0,2101.4,39.92026294]
[1625149621308,7.13402,2102.0,2101.4,40.20365044]
[1625149622759,9.51264,2102.1,2101.4,40.20365044]
[1625149622962,3.5672917,2102.3,2101.4,40.20365044]
[1625149623261,15.45967,2102.6,2101.4,40.20365044]
[1625149623460,15.45967,2102.6,2101.5,0.08]
[1625149623608,15.45967,2102.6,2101.4,40.20365044]
[1625149623962,11.8926,2102.6,2101.4,40.20365044]
[1625149624164,55.0,2102.8,2101.4,45.0210615]
[1625149624266,55.0,2102.8,2101.5,0.09443382]
[1625149624455,55.0,2102.8,2101.6,2.42955539]
[1625149624557,55.0,2102.8,2101.7,0.02256552]
[1625149625256,62.13134,2102.8,2101.9,7.13074]
[1625149625354,62.13134,2102.8,2101.9,10.18734]
[1625149625504,62.13134,2102.8,2101.9,26.700045]
[1625149625610,55.0,2102.8,2101.9,26.700045]
[1625149625856,55.0,2102.8,2101.9,29.19906002]
[1625149625954,55.0,2102.8,2101.9,31.56861541]
[1625149626758,55.0,2102.8,2101.9,31.50861541]
[1625149630420,55.0,2102.8,2101.9,14.99591041]
[1625149630517,0.24327299,2102.7,2101.9,26.80657081]
[1625149630666,55.0,2102.8,2101.9,26.80657081]
[1625149630887,55.0,2102.8,2102.0,0.06]
[1625149631513,55.0,2102.8,2101.9,19.67583081]
[1625149632177,55.0,2102.8,2101.9,26.80657081]
[1625149633560,62.13085,2102.8,2101.9,26.80657081]
[1625149633758,55.0,2102.8,2101.9,26.80657081]
[1625149633960,55.0,2102.8,2102.0,0.04]
[1625149634060,55.0,2102.8,2102.0,4.5925]
[1625149634159,49.996,2102.8,2102.0,4.5925]
[1625149634713,57.12683,2102.8,2102.0,4.5925]
[1625149635114,57.12683,2102.8,2101.9,2.5032]
[1625149635213,57.12683,2102.8,2101.5,41.10713602]
[1625149635610,0.06,2102.7,2101.5,41.10713602]
[1625149635960,49.996,2102.8,2101.5,41.10713602]
[1625149636062,3.5661775,2102.7,2101.5,41.10713602]
[1625149637211,7.13265,2102.3,2101.5,41.10713602]
[1625149639704,0.21113059,2102.2,2101.5,14.15561362]
[1625149639884,3.5661775,2102.7,2101.6,0.1]
[1625149639982,18.3813404,2103.3,2101.6,4.4979]
[1625149640186,16.64403,2103.3,2101.7,2.36955539]
[1625149641037,3.56581,2103.0,2101.7,2.36955539]
[1625149641138,57.1269,2102.8,2101.7,9.50081539]
[1625149641338,57.1269,2102.8,2101.8,0.06]
[1625149641587,57.1269,2102.8,2101.7,9.50081539]
[1625149643980,0.03447814,2102.7,2101.7,9.50081539]
[1625149644129,7.16563814,2102.7,2101.7,45.89821489]
[1625149644377,17.34514794,2102.7,2101.7,36.3973995]
[1625149644473,10.21437814,2102.7,2101.4,35.34876294]
[1625149644617,0.08,2102.6,2101.4,37.13076294]
[1625149644716,2.4,2102.5,2101.4,37.13076294]
[1625149644815,2.47618183,2102.5,2101.4,37.13076294]
[1625149644964,0.23,2102.4,2101.4,37.13076294]
[1625149645068,3.56703,2102.3,2101.4,37.13076294]
[1625149645219,3.5670752,2102.1,2101.4,35.34876294]
[1625149645315,7.13519,2101.8,2101.4,35.34876294]
[1625149646640,10.7027942,2101.8,2101.4,35.34876294]
[1625149646740,3.5676042,2101.8,2101.4,35.34876294]
[1625149646837,0.1,2101.7,2101.4,35.34876294]
[1625149647179,4.7580774,2101.6,2101.4,35.34876294]
[1625149647655,13.0013574,2101.6,2101.4,35.34876294]
[1625149647756,15.9286574,2101.6,2101.4,35.34876294]
[1625149647907,23.0645474,2101.6,2101.4,35.34876294]
[1625149648006,0.08,2101.5,2101.4,35.34876294]
[1625149648214,0.08,2101.5,2101.4,33.36646294]
[1625149648895,9.5969,2101.5,2101.4,33.36646294]
[1625149649045,14.5969,2101.5,2101.4,33.36646294]
[1625149649145,14.5969,2101.5,2101.4,30.54447811]
[1625149649348,9.5969,2101.5,2101.4,30.54447811]
[1625149649442,14.5969,2101.5,2101.4,30.54447811]
[1625149649547,9.5969,2101.5,2101.4,30.54447811]
[1625149649644,9.63139056,2101.5,2101.4,30.54447811]
[1625149650494,9.55139056,2101.5,2101.4,30.54447811]
[1625149652121,13.11994516,2101.5,2101.4,30.54447811]
[1625149654647,13.21994516,2101.5,2101.4,30.54447811]
[1625149654848,13.36994516,2101.5,2101.4,30.54447811]
[1625149655099,28.36994516,2101.5,2101.4,30.54447811]
[1625149655628,13.36994516,2101.5,2101.4,30.54447811]
[1625149656228,13.26994516,2101.5,2101.4,30.54447811]
[1625149657229,13.11994516,2101.5,2101.4,30.54447811]
[1625149659770,3.60304516,2101.5,2101.4,30.54447811]
[1625149660361,0.03449056,2101.5,2101.4,30.54447811]
[1625149661110,0.03449056,2101.5,2101.4,30.68447811]
[1625149661369,10.7033014,2102.5,2101.4,30.68447811]
[1625149661568,3.5666779,2102.3,2101.4,35.32266334]
[1625149661671,3.56668,2102.2,2101.4,35.32266334]
[1625149661867,3.56668,2102.2,2101.4,35.18266334]
[1625149662219,1.2987,2102.5,2101.4,30.54447811]
[1625149662416,4.6154,2102.3,2101.4,30.54447811]
[1625149662551,6.018,2102.3,2101.4,30.54447811]
[1625149662850,10.70116,2101.9,2101.4,30.54447811]
[1625149662949,3.5676878,2101.7,2101.4,30.54447811]
[1625149664003,7.13572,2101.6,2101.4,30.54447811]
[1625149664398,3.5676878,2101.7,2101.4,30.54447811]
[1625149664499,3.5676878,2101.7,2101.4,35.11697811]
[1625149664622,3.56721,2101.9,2101.4,35.11697811]
[1625149664723,3.56721,2101.9,2101.5,0.08]
[1625149665320,3.56721,2101.9,2101.4,35.11697811]
[1625149667817,3.56721,2101.9,2101.4,36.67277301]
[1625149667923,10.259,2103.2,2101.4,36.67277301]
[1625149668023,7.1328,2102.3,2101.5,0.23876918]
[1625149668125,3.5663565,2102.4,2101.5,0.23876918]
[1625149668220,3.5663565,2102.4,2101.4,36.67277301]
[1625149668969,3.5662,2102.3,2101.4,36.67277301]
[1625149669380,7.13272,2102.2,2101.4,36.67277301]
[1625149671826,3.5662,2102.3,2101.4,36.67277301]
[1625149672027,3.5663565,2102.4,2101.4,36.67277301]
[1625149672178,3.5663565,2102.4,2101.5,0.06]
[1625149672278,3.5663565,2102.4,2101.4,41.43521751]
[1625149672475,7.13272,2102.2,2101.4,41.43521751]